bitfinex/quotes_SOLUSD_20250830
["timestamp","ask_amount","ask_price","bid_price","bid_amount"]
[1756522893631,13.59559401,203.61,203.6,0.2]
[1756522893834,61.41655057,203.61,203.59,0.03]
[1756522894138,10.11095656,203.6,203.59,0.03]
[1756522894704,15.02254791,203.6,203.59,0.03]
[1756522896128,39.59559401,203.57,203.46,0.67]
[1756522896305,44.30607229,203.57,203.51,0.67]
[1756522896503,69.80047828,203.57,203.48,4.71047828]
[1756522896736,69.80047828,203.57,203.52,0.67]
[1756522896737,69.11047828,203.57,203.52,0.67]
[1756522896938,4.71047828,203.57,203.53,0.67]
[1756522897637,5.40047828,203.57,203.51,0.67]
[1756522897806,0.69,203.57,203.51,0.67]
[1756522898009,38.4,203.59,203.53,0.67]
[1756522898233,4.71047828,203.57,203.53,0.67]
[1756522898916,4.71047828,203.58,203.56,0.7]
[1756522899216,4.71047828,203.58,203.56,0.03]
[1756522899440,4.71047828,203.57,203.56,0.7]
[1756522899646,4.71047828,203.57,203.56,0.03]
[1756522900229,4.71047828,203.57,203.56,0.7]
[1756522900726,4.71047828,203.58,203.56,0.7]
[1756522900943,5.60121656,203.62,203.56,0.7]
[1756522901144,157.6,203.62,203.56,5.41047828]
[1756522901436,4.71047828,203.6,203.57,0.67]
[1756522901642,4.71047828,203.6,203.58,0.67]
[1756522906623,4.71047828,203.6,203.56,0.7]
[1756522906819,4.71047828,203.57,203.56,0.03]
[1756522908734,5.60166908,203.6,203.56,0.03]
[1756522909040,4.71047828,203.58,203.56,0.03]
[1756522909814,4.71047828,203.57,203.56,0.03]
[1756522910542,10.31279345,203.57,203.56,0.03]
[1756522910950,48.71279345,203.57,203.56,0.03]
[1756522912940,180.31279345,203.57,203.56,0.03]
[1756522913533,131.6,203.57,203.56,0.03]
[1756522913738,136.31047828,203.57,203.56,0.03]
[1756522914048,137.00047828,203.57,203.56,0.03]
[1756522915460,141.91279345,203.57,203.56,0.03]
[1756522920256,4.71047828,203.59,203.56,0.7]
[1756522920436,4.71047828,203.59,203.57,0.67]
[1756522921751,4.71047828,203.58,203.56,0.03]
[1756522921942,4.71047828,203.58,203.56,0.69]
[1756522923439,4.71047828,203.58,203.56,0.03]
[1756522923639,4.71047828,203.59,203.56,0.69]
[1756522923835,4.71047828,203.57,203.56,0.03]
[1756522924451,4.71047828,203.57,203.56,0.69]
[1756522924767,4.71047828,203.58,203.56,0.69]
[1756522928378,5.41047828,203.58,203.56,0.03]
[1756522928673,4.71047828,203.57,203.56,0.03]
[1756522931076,4.71047828,203.58,203.56,0.03]
[1756522931280,4.71047828,203.59,203.56,0.69]
[1756522932480,5.41047828,203.59,203.56,0.69]
[1756522933652,5.41047828,203.59,203.56,0.03]
[1756522938784,0.06,203.6,203.56,0.03]
[1756522938964,0.06,203.6,203.57,5.37047828]
[1756522939290,5.41047828,203.59,203.56,0.03]
[1756522939516,0.7,203.58,203.56,0.03]
[1756522940095,0.06,203.59,203.56,0.03]
[1756522940299,0.06,203.59,203.57,0.66]
[1756522941174,0.76,203.59,203.56,0.03]
[1756522941550,0.06,203.59,203.57,0.66]
[1756522943370,0.06,203.59,203.57,5.57222227]
[1756522946286,0.06,203.59,203.57,0.66]
[1756522947170,4.77047828,203.59,203.57,0.66]
[1756522947376,5.47047828,203.59,203.56,0.03]
[1756522947683,4.77047828,203.59,203.56,0.69]
[1756522948075,0.06,203.59,203.56,0.69]
[1756522948271,4.71047828,203.57,203.56,0.03]
[1756522948481,5.41047828,203.57,203.56,0.03]
[1756522950372,136.31047828,203.58,203.56,0.03]
[1756522950580,0.7,203.57,203.56,0.03]
[1756522950909,5.41047828,203.57,203.56,0.03]
[1756522953475,131.6,203.58,203.56,0.03]
[1756522953691,4.71047828,203.57,203.56,0.03]
[1756522955083,131.6,203.58,203.56,0.71]
[1756522955414,0.06,203.59,203.56,0.71]
[1756522955573,0.06,203.59,203.57,0.68]
[1756522955976,0.06,203.59,203.58,0.68]
[1756522956596,0.06,203.59,203.56,4.94255649]
[1756522956806,0.06,203.59,203.57,0.68]
[1756522962308,5.36047828,203.58,203.56,0.03]
[1756522962510,4.71047828,203.57,203.56,0.03]
[1756522962718,0.65,203.57,203.56,0.03]
[1756522962911,5.36047828,203.57,203.56,0.03]
[1756522970236,10.27279345,203.57,203.56,0.03]
[1756522971215,5.36047828,203.57,203.56,0.03]
[1756522972533,10.27279345,203.57,203.56,0.03]
[1756522976133,10.33279345,203.57,203.56,0.03]
[1756522977609,0.06,203.57,203.56,0.03]
[1756522977811,4.77047828,203.57,203.56,0.71]
[1756522978033,0.06,203.57,203.56,0.71]
[1756522978536,4.77047828,203.57,203.56,0.03]
[1756522981107,4.77047828,203.57,203.56,0.69]
[1756522982918,0.06,203.57,203.56,0.69]
[1756522983739,0.06,203.57,203.56,5.60255649]
[1756522984112,0.06,203.57,203.56,10.31303477]
[1756522984730,0.06,203.57,203.56,5.60255649]
[1756522985039,0.06,203.57,203.56,10.31303477]
[1756522986335,0.06,203.57,203.56,5.60255649]
[1756522987430,0.06,203.57,203.56,0.69]
[1756522988342,0.06,203.57,203.56,5.60255649]
[1756522989329,0.06,203.57,203.56,10.37303449]
[1756522989942,0.06,203.57,203.56,5.460478]
[1756522990127,5.46047828,203.57,203.56,4.800478]
[1756522990744,5.46047828,203.57,203.56,0.03]
[1756522991242,4.77047828,203.57,203.56,0.03]
[1756522991744,5.46047828,203.57,203.56,0.03]
[1756522992827,4.77047828,203.57,203.56,0.03]
[1756522993024,0.06,203.57,203.56,0.03]
[1756522993232,0.06,203.57,203.56,5.40047828]
[1756522994325,0.06,203.57,203.56,10.31303477]
[1756522994736,0.06,203.57,203.56,12.28139377]
[1756522996536,5.46047828,203.57,203.56,1.998359]
[1756522996728,5.46047828,203.57,203.56,0.03]
[1756522997051,4.77047828,203.57,203.56,0.03]
[1756522997245,0.06,203.57,203.56,0.03]
[1756522999048,0.06,203.57,203.56,0.69]
[1756522999542,0.06,203.57,203.56,5.400478]
[1756523000666,0.06,203.57,203.56,10.31303449]
[1756523002655,0.06,203.57,203.56,15.02351277]
[1756523003760,0.06,203.57,203.56,10.31303449]
[1756523003959,0.06,203.57,203.56,4.740478]
[1756523004348,5.46047828,203.57,203.56,0.03]
[1756523004752,0.75,203.57,203.56,0.03]
[1756523004950,0.06,203.57,203.56,0.03]
[1756523005769,0.06,203.57,203.56,0.69]
[1756523006071,0.06,203.57,203.56,0.03]
[1756523007855,0.06,203.57,203.56,0.69]
[1756523008374,0.06,203.57,203.56,5.40047828]
[1756523009574,0.06,203.57,203.56,10.31303477]
[1756523010378,0.06,203.57,203.56,12.28148977]
[1756523011463,0.06,203.57,203.56,7.57101149]
[1756523011669,0.06,203.57,203.56,12.28148977]
[1756523012066,0.06,203.57,203.56,6.91101149]
[1756523012270,0.72,203.57,203.56,45.21101149]
[1756523012565,0.06,203.57,203.56,45.91101149]
[1756523012779,0.06,203.62,203.61,26.0]
[1756523012949,1e-08,203.62,203.61,82.60607229]
[1756523013151,1e-08,203.62,203.61,83.30607229]
[1756523013558,1e-08,203.62,203.61,85.27375229]
[1756523013777,1e-08,203.64,203.61,85.27375229]
[1756523014077,1e-08,203.64,203.63,4.71047828]
[1756523014275,1e-08,203.64,203.63,9.62134603]
[1756523014453,1e-08,203.64,203.63,10.32134603]
[1756523014870,1e-08,203.64,203.63,12.28893003]
[1756523018478,0.66000001,203.64,203.63,6.87845175]
[1756523018668,0.66000001,203.64,203.63,4.91086775]
[1756523018864,1e-08,203.64,203.63,6.67844928]
[1756523019254,1e-08,203.64,203.63,7.37844928]
[1756523019661,1e-08,203.64,203.63,6.67844928]
[1756523020155,1e-08,203.64,203.63,1.967971]
[1756523020463,0.66000001,203.64,203.63,1.967971]
[1756523020663,0.66000001,203.64,203.63,38.3]
[1756523020857,0.66000001,203.64,203.62,9.63739092]
[1756523021177,5.37047828,203.63,203.62,38.3]
[1756523021575,0.66,203.63,203.62,38.3]
[1756523021974,0.66,203.63,203.62,43.21110892]
[1756523022580,0.66,203.63,203.62,38.3]
[1756523022782,0.66,203.63,203.62,43.21110892]
[1756523022990,1e-08,203.64,203.62,43.21110892]
[1756523023169,0.66000001,203.64,203.62,43.21110892]
[1756523023477,0.66,203.63,203.62,43.21110892]
[1756523025565,4.71047829,203.64,203.62,43.91110892]
[1756523025566,1e-08,203.64,203.62,43.91110892]
[1756523025772,1e-08,203.64,203.63,5.41047828]
[1756523026497,1e-08,203.64,203.63,10.32134603]
[1756523027501,1e-08,203.64,203.63,5.61086775]
[1756523027680,1e-08,203.64,203.63,10.32134603]
[1756523028670,0.66000001,203.64,203.62,14.75688]
[1756523028994,1e-08,203.64,203.63,38.28]
[1756523030391,1e-08,203.64,203.63,43.19086775]
[1756523031282,1e-08,203.64,203.63,50.56902703]
[1756523032098,0.66000001,203.64,203.63,38.28]
[1756523032301,0.66000001,203.64,203.63,43.19086775]
[1756523037402,1e-08,203.64,203.63,43.19086775]
[1756523038285,1e-08,203.64,203.63,48.60134603]
[1756523039206,1e-08,203.64,203.63,45.15874175]
[1756523040299,0.66000001,203.64,203.63,40.247874]
[1756523040608,5.37047829,203.64,203.61,0.03]
[1756523040788,4.71047828,203.62,203.61,0.03]
[1756523040990,4.71047828,203.62,203.61,38.31]
[1756523041200,5.38047828,203.62,203.61,38.31]
[1756523041404,5.38047828,203.62,203.61,0.03]
[1756523042810,10.2915872,203.62,203.61,0.03]
[1756523043423,5.38047828,203.62,203.61,0.03]
[1756523044085,0.67,203.62,203.61,0.03]
[1756523044292,5.38047828,203.62,203.61,0.03]
[1756523046508,10.2915872,203.62,203.61,0.03]
[1756523051029,5.38047828,203.62,203.61,0.03]
[1756523051203,4.71047828,203.62,203.61,0.03]
[1756523051599,5.38047828,203.62,203.61,0.03]
[1756523052322,4.71047828,203.62,203.61,0.03]
[1756523053529,5.38047828,203.62,203.61,0.03]
[1756523056634,4.71047828,203.62,203.61,0.03]
[1756523057722,131.60000001,203.64,203.61,0.7]
[1756523057926,4.71047829,203.64,203.61,0.7]
[1756523058125,4.71047829,203.64,203.62,0.67]
[1756523058316,1e-08,203.64,203.62,0.67]
[1756523058628,1e-08,203.64,203.63,0.67]
[1756523059019,1e-08,203.64,203.63,5.58086775]
[1756523059213,1e-08,203.64,203.63,10.29134603]
[1756523060529,1e-08,203.64,203.63,5.58086775]
[1756523065540,1e-08,203.64,203.63,10.29134603]
[1756523067353,1e-08,203.64,203.63,5.58086775]
[1756523067517,1e-08,203.64,203.63,10.29134603]
[1756523069348,1e-08,203.64,203.63,4.91086775]
[1756523070432,1e-08,203.64,203.63,10.29134603]
[1756523072635,1e-08,203.64,203.63,5.58086775]
[1756523072826,1e-08,203.64,203.63,10.29134603]
[1756523073026,1e-08,203.67,203.66,39.59559401]
[1756523073225,1e-08,203.67,203.66,83.09708672]
[1756523073425,0.06,203.77,203.66,79.08660844]
[1756523073725,0.77,203.77,203.71,4.71047828]
[1756523073925,0.77,203.77,203.71,43.05047828]
[1756523074143,0.77,203.77,203.71,43.75047828]
[1756523075047,0.77,203.77,203.71,48.65941745]
[1756523075453,0.71,203.76,203.71,48.65941745]
[1756523077021,0.71,203.76,203.71,43.94893917]
[1756523077226,0.71,203.76,203.71,48.65941745]
[1756523078137,5.42047828,203.76,203.71,48.65941745]
[1756523078736,1e-08,203.72,203.71,88.21501146]
[1756523079367,1e-08,203.72,203.71,90.18162846]
[1756523081546,1e-08,203.72,203.71,85.47115018]
[1756523081744,1e-08,203.72,203.71,90.18162846]
[1756523083645,1e-08,203.77,203.75,13.59559401]
[1756523083842,1e-08,203.78,203.77,13.59559401]
[1756523084048,1e-08,203.79,203.77,44.30607229]
[1756523084246,1e-08,203.79,203.78,57.30607229]
[1756523085560,1e-08,203.79,203.78,62.2133252]
[1756523087640,1e-08,203.79,203.78,62.1933252]
[1756523095847,1e-08,203.79,203.78,62.2233252]
[1756523099651,1e-08,203.79,203.78,57.51284692]
[1756523099836,1e-08,203.79,203.78,62.2233252]
[1756523101559,0.06,203.83,203.82,13.59559401]
[1756523101761,0.06,203.83,203.82,56.54607229]
[1756523101960,0.06,203.83,203.82,57.24607229]
[1756523102464,1e-08,203.84,203.82,59.21153029]
[1756523102970,1e-08,203.84,203.82,57.24607229]
[1756523103279,1e-08,203.84,203.83,18.30607201]
[1756523103771,1e-08,203.84,203.83,66.16259944]
[1756523104447,1e-08,203.84,203.83,61.45212116]
[1756523104649,1e-08,203.84,203.83,66.16259944]
[1756523105652,1e-08,203.84,203.83,61.45212144]
[1756523107576,1e-08,203.84,203.83,56.74164316]
[1756523107878,1e-08,203.84,203.83,61.45212144]
[1756523108182,1e-08,203.84,203.83,62.15212144]
[1756523108382,1e-08,203.84,203.83,61.45212144]
[1756523108568,0.71000001,203.84,203.83,61.45212144]
[1756523109168,1e-08,203.84,203.83,61.45212144]
[1756523109365,0.71000001,203.84,203.83,4.90604915]
[1756523109571,0.71000001,203.84,203.82,4.710478]
[1756523109770,1e-08,203.84,203.83,38.24]
[1756523110170,5.42047829,203.84,203.79,4.90699468]
[1756523110378,5.42047828,203.83,203.8,38.24]
[1756523110573,0.71,203.82,203.81,9.614885]
[1756523110792,0.71,203.82,203.8,38.24]
[1756523110985,0.71,203.81,203.8,38.24]
[1756523111381,5.42047828,203.81,203.78,4.740478]
[1756523111589,5.42047828,203.8,203.78,0.03]
[1756523111757,4.71047828,203.79,203.78,0.03]
[1756523112260,5.42047828,203.79,203.78,0.03]
[1756523113071,0.71,203.79,203.78,0.03]
[1756523113295,5.42047828,203.79,203.78,0.03]
[1756523113782,10.3274904,203.79,203.78,0.03]
[1756523114286,5.42047828,203.79,203.78,0.03]
[1756523114664,0.71,203.79,203.78,0.03]
[1756523114864,5.42047828,203.79,203.78,0.03]
[1756523115274,131.6,203.82,203.78,38.27]
[1756523115571,1e-08,203.84,203.78,38.27]
[1756523115572,0.71,203.81,203.79,4.71047828]
[1756523116101,1e-08,203.84,203.8,5.41047828]
[1756523116282,1e-08,203.84,203.83,4.71047828]
[1756523116664,1e-08,203.84,203.8,26.0]
[1756523116665,5.42047829,203.84,203.8,26.0]
[1756523116897,4.71047828,203.82,203.8,38.26]
[1756523117191,0.71,203.81,203.8,38.26]
[1756523117691,5.42047828,203.81,203.8,38.26]
[1756523118269,5.42047828,203.81,203.78,38.31]
[1756523118468,5.42047828,203.8,203.78,38.31]
[1756523118770,0.71,203.8,203.78,43.21714822]
[1756523118987,5.42047828,203.82,203.78,43.21714822]
[1756523119187,0.71,203.81,203.78,43.21714822]
[1756523119384,0.71,203.81,203.78,47.9276265]
[1756523119588,0.71,203.83,203.79,4.71047828]
[1756523119780,0.71,203.82,203.79,4.71047828]
[1756523121991,0.71000001,203.84,203.8,9.61724962]
[1756523122198,0.71,203.83,203.81,38.26]
[1756523123798,0.71,203.83,203.81,43.1665125]
[1756523125101,1e-08,203.84,203.78,4.740478]
[1756523125310,5.42047828,203.82,203.79,38.24]
[1756523125606,4.71047828,203.83,203.79,38.24]
[1756523125787,0.71,203.82,203.79,38.24]
[1756523127000,0.71,203.82,203.79,47.85733036]
[1756523127201,0.71,203.82,203.79,42.95047828]
[1756523127410,0.71,203.81,203.79,38.24]
[1756523130589,0.71,203.83,203.79,43.14701106]
[1756523130785,1e-08,203.84,203.79,47.85748934]
[1756523130990,0.7,203.83,203.79,47.85748934]
[1756523131302,0.7,203.83,203.79,48.56748934]
[1756523132302,0.7,203.83,203.79,43.85701106]
[1756523132494,0.7,203.83,203.79,48.56748934]
[1756523133408,0.7,203.82,203.79,43.14701106]
[1756523133703,4.71047828,203.83,203.79,43.14701106]
[1756523133889,5.41047828,203.83,203.79,43.14701106]
[1756523134091,5.41047828,203.83,203.79,43.85701106]
[1756523134297,4.71047828,203.83,203.79,43.85701106]
[1756523134505,0.7,203.82,203.79,43.14701106]
[1756523135794,4.71047828,203.83,203.79,43.85701106]
[1756523135994,0.7,203.83,203.79,43.85701106]
[1756523136194,5.41047828,203.83,203.79,43.85701106]
[1756523137812,0.7,203.83,203.79,43.85701106]
[1756523138007,0.1,204.0,203.87,13.59559401]
[1756523138310,0.1,204.0,203.94,26.0]
[1756523138502,0.1,204.0,203.97,4.71047828]
[1756523138718,0.1,204.0,203.99,4.71047828]
[1756523139092,0.1,204.0,203.99,43.92047828]
[1756523139505,0.1,204.0,203.99,58.65344328]
[1756523139886,0.1,204.0,203.99,63.55564436]
[1756523140414,0.1,204.0,203.99,58.84516608]
[1756523140596,0.1,204.0,203.99,63.55564436]
[1756523142194,0.1,204.0,203.99,62.82564436]
[1756523142402,0.1,204.0,203.99,43.38220108]
[1756523142718,0.1,204.0,203.99,52.80315836]
[1756523143304,0.1,204.0,203.99,53.51315836]
[1756523144587,0.1,204.0,203.99,4.710479]
[1756523144789,0.8,204.0,203.99,38.46]
[1756523145107,5.51047828,204.0,203.99,38.46]
[1756523145717,0.1,204.0,203.99,43.17047828]
[1756523146304,0.1,204.0,203.99,48.78267936]
[1756523148322,0.1,204.0,203.99,50.74707436]
[1756523150018,0.1,204.0,203.99,46.03659608]
[1756523150195,0.1,204.0,203.99,50.74707436]
[1756523150395,0.1,204.0,203.99,46.03659608]
[1756523150589,0.1,204.0,203.99,50.74707436]
[1756523152905,0.1,204.0,203.99,46.03659608]
[1756523153202,0.1,204.0,203.99,40.384395]
[1756523153604,0.1,204.0,203.99,45.28659608]
[1756523153998,0.1,204.0,203.99,49.99707436]
[1756523154203,0.1,204.0,203.99,50.70707436]
[1756523160733,0.06,204.03,204.02,26.0]
[1756523160923,0.06,204.03,204.02,69.07047828]
[1756523161125,0.06,204.03,204.02,74.65195852]
[1756523161525,0.06,204.03,204.02,79.36243752]
[1756523162732,1e-08,204.03,204.02,79.36243752]
[1756523164545,1e-08,204.05,204.03,13.59559401]
[1756523164716,1e-08,204.05,204.04,56.80607229]
[1756523165037,1e-08,204.05,204.04,57.48607229]
[1756523165240,1e-08,204.05,204.04,62.19655029]
[1756523166315,1e-08,204.05,204.04,57.48607201]
[1756523166640,1e-08,204.06,204.05,13.59559401]
[1756523166811,1e-08,204.06,204.05,52.97559401]
[1756523167014,1e-08,204.06,204.05,57.68607229]
[1756523168136,1e-08,204.06,204.05,18.98607229]
[1756523168328,1e-08,204.06,204.05,57.66607229]
[1756523168643,1.18322227,204.1,204.08,39.59559401]
[1756523168849,1.18322227,204.1,204.09,56.98607229]
[1756523169321,1.18322227,204.1,204.09,72.38891429]
[1756523171243,1.89322227,204.1,204.09,45.6226411]
[1756523171448,1.89322227,204.1,204.09,69.5597991]
[1756523172926,1.89322227,204.1,204.09,30.8997991]
[1756523173131,1.89322227,204.1,204.09,69.5597991]
[1756523173533,1.89322227,204.1,204.09,43.5597991]
[1756523174245,1.89322227,204.1,204.06,4.710478]
[1756523174418,0.71,204.09,204.07,38.64]
[1756523174750,1.18322227,204.1,204.08,38.64]
[1756523174916,1.18322227,204.1,204.09,38.64]
[1756523175121,1.89322227,204.1,204.09,38.64]
[1756523175715,1.89322227,204.1,204.06,30.71047828]
[1756523175925,4.71047828,204.07,204.06,38.62]
[1756523176130,5.42047828,204.07,204.06,38.62]
[1756523176755,0.71,204.07,204.06,38.62]
[1756523177416,5.42047828,204.07,204.06,38.62]
[1756523177618,5.42047828,204.07,204.06,43.52051945]
[1756523177942,5.42047828,204.07,204.06,38.62]
[1756523179237,5.42047828,204.07,204.05,38.64]
[1756523179546,5.42047828,204.06,204.05,38.62]
[1756523179730,0.71,204.06,204.01,4.9017205]
[1756523179938,5.42047828,204.05,204.02,38.62]
[1756523180134,0.71,204.05,204.03,38.62]
[1756523180330,5.42047828,204.05,204.01,4.9017205]
[1756523180648,0.71,204.04,204.02,38.6]
[1756523180850,0.71,204.03,204.02,38.6]
[1756523181849,5.42047828,204.03,203.99,0.03]
[1756523182155,4.71047828,204.0,203.99,0.03]
[1756523182556,5.42047828,204.0,203.99,0.03]
[1756523189966,0.06,204.03,203.99,0.71]
[1756523190189,4.71047828,204.01,204.0,38.56]
[1756523190860,4.77047828,204.03,204.0,39.22]
[1756523191076,0.06,204.03,204.0,38.56]
[1756523191275,0.06,204.03,204.01,5.37047828]
[1756523191569,0.06,204.03,204.02,30.71047828]
[1756523191772,0.06,204.03,204.02,31.37047828]
[1756523192066,0.06,204.03,204.02,36.27195852]
[1756523193275,0.06,204.03,204.02,31.56148024]
[1756523193579,0.06,204.03,204.02,36.27195852]
[1756523195456,0.06,204.03,204.02,31.56148024]
[1756523196954,0.06,204.03,204.02,36.27195852]
[1756523197568,0.06,204.03,204.02,74.81195852]
[1756523198360,1e-08,204.03,204.02,88.40755253]
[1756523198878,1e-08,204.03,204.02,83.69707425]
[1756523199078,1e-08,204.03,204.02,88.40755253]
[1756523200501,1e-08,204.03,204.02,83.69707425]
[1756523200706,1e-08,204.03,204.02,88.40755253]
[1756523201506,1e-08,204.03,204.02,90.37117653]
[1756523202890,1e-08,204.03,204.02,88.40755253]
[1756523203586,1e-08,204.03,204.02,83.69707425]
[1756523203788,1e-08,204.03,204.02,88.40755253]
[1756523204080,0.70000001,204.03,204.02,69.38148024]
[1756523204782,1e-08,204.03,204.02,69.38148024]
[1756523207659,1e-08,204.03,204.02,74.09195852]
[1756523208191,1e-08,204.03,204.02,69.38148024]
[1756523209172,1e-08,204.03,204.02,70.04148024]
[1756523209369,1e-08,204.03,204.02,74.09195852]
[1756523209676,1e-08,204.03,204.02,69.38148024]
[1756523212993,1e-08,204.03,204.02,74.09195852]
[1756523215694,1e-08,204.03,204.02,87.68755253]
[1756523215910,1e-08,204.03,204.02,88.34755253]
[1756523224708,1e-08,204.03,204.02,44.49707425]
[1756523225006,0.69000001,204.03,204.02,69.22148024]
[1756523225176,1e-08,204.03,204.02,82.81707425]
[1756523225378,1e-08,204.03,204.02,87.52755253]
[1756523225578,0.69000001,204.03,204.02,69.22148024]
[1756523227106,0.69000001,204.03,203.99,13.62559401]
[1756523227308,0.69,204.02,204.0,38.34]
[1756523227509,0.69,204.01,204.0,38.34]
[1756523228207,0.69,204.01,204.0,43.24196078]
[1756523229301,0.69,204.01,204.0,47.95243878]
[1756523234125,5.40047828,204.01,203.99,0.03]
[1756523234418,4.71047828,204.0,203.99,38.39]
[1756523234594,5.40047828,204.0,203.99,38.39]
[1756523235215,1e-08,204.03,203.99,43.96210538]
[1756523235412,4.71047829,204.03,203.99,43.96210538]
[1756523235590,4.71047829,204.03,203.99,43.29210538]
[1756523235591,0.69,204.02,203.99,43.29210538]
[1756523235792,4.71047828,204.02,203.99,43.2921455]
[1756523235998,0.69,204.02,203.99,43.2921455]
[1756523237220,4.71047829,204.03,203.99,43.2921455]
[1756523237520,5.40047828,204.02,203.99,43.2921455]
[1756523237890,1e-08,204.03,203.99,43.2921455]
[1756523237891,1e-08,204.03,204.02,26.0]
[1756523238219,1e-08,204.03,204.02,82.68607229]
[1756523238456,1e-08,204.06,204.05,39.59559401]
[1756523238599,1e-08,204.06,204.05,82.86607229]
[1756523238795,1e-08,204.08,204.05,83.53607229]
[1756523239000,1e-08,204.08,204.06,14.26559401]
[1756523239219,1e-08,204.08,204.07,43.29047828]
[1756523239422,1e-08,204.08,204.07,48.86075759]
[1756523239595,1e-08,204.08,204.07,10.28075759]
[1756523239796,1e-08,204.08,204.07,48.88075759]
[1756523242101,1e-08,204.08,204.07,50.84389959]
[1756523242440,1e-08,204.1,204.09,26.0]
[1756523242643,1e-08,204.1,204.09,78.15559401]
[1756523242816,1e-08,204.1,204.09,83.53607229]
[1756523244519,1e-08,204.1,204.09,88.43587139]
[1756523244918,1e-08,204.1,204.09,90.39891739]
[1756523249843,1e-08,204.11,204.1,18.30607229]
[1756523250040,1e-08,204.11,204.1,18.97607229]
[1756523250229,1e-08,204.11,204.1,23.87563132]
[1756523251142,1e-08,204.11,204.1,28.58610932]
[1756523252013,1e-08,204.11,204.1,23.87563104]
[1756523252221,1e-08,204.11,204.1,28.58610932]
[1756523254645,1e-08,204.11,204.1,28.63610932]
[1756523256047,1e-08,204.11,204.1,67.05610932]
[1756523258122,1e-08,204.11,204.1,62.34563104]
[1756523258326,1e-08,204.11,204.1,67.05610932]
[1756523264750,1e-08,204.14,204.13,26.0]
[1756523264947,1e-08,204.14,204.13,69.03047828]
[1756523265652,1e-08,204.14,204.13,73.74095628]
[1756523267152,1e-08,204.14,204.13,78.63979525]
[1756523267353,1e-08,204.14,204.13,40.31979525]
[1756523268055,1e-08,204.14,204.13,78.59979525]
[1756523268941,1e-08,204.14,204.13,79.31979525]
[1756523269352,1e-08,204.14,204.13,92.91538926]
[1756523270047,1e-08,204.14,204.13,92.19538926]
[1756523270945,1e-08,204.14,204.13,53.91538926]
[1756523271146,0.65000001,204.14,204.13,53.91538926]
[1756523271361,1e-08,204.14,204.13,92.27538926]
[1756523272433,1e-08,204.14,204.13,92.99538926]
[1756523272931,1e-08,204.14,204.13,92.27538926]
[1756523274282,1e-08,204.14,204.13,92.99538926]
[1756523276065,341.5,204.27,204.13,105.24248669]
[1756523276366,0.65,204.2,204.18,4.71047828]
[1756523276579,4.71047828,204.23,204.19,38.34]
[1756523276873,4.71047828,204.24,204.19,43.05047828]
[1756523277067,0.65,204.23,204.19,43.05047828]
[1756523277239,0.65,204.22,204.19,43.05047828]
[1756523277441,0.65,204.21,204.19,57.76826528]
[1756523277645,0.65,204.21,204.19,53.057787]
[1756523277951,0.65,204.21,204.19,57.76826528]
[1756523278150,131.6,204.27,204.2,4.89715964]
[1756523278353,5.36047828,204.24,204.21,38.34]
[1756523278562,0.65,204.23,204.21,38.34]
[1756523278870,0.65,204.22,204.21,38.34]
[1756523279472,0.65,204.22,204.21,43.23691983]
[1756523280940,131.6,204.27,204.21,48.65739811]
[1756523281182,131.6,204.27,204.21,47.94739811]
[1756523281183,0.71,204.26,204.21,47.94739811]
[1756523281344,0.71,204.25,204.21,62.66374111]
[1756523281549,131.6,204.27,204.21,62.66374111]
[1756523281550,0.71,204.24,204.21,62.66374111]
[1756523281852,5.42047828,204.26,204.21,62.66374111]
[1756523282067,0.71,204.25,204.21,62.66374111]